[Event "Masters Tournament (MTO)"]
[Site "Biel, Switzerland"]
[Date "2026.07.22"]
[Round "9.11"]
[White "Coban, Ege"]
[Black "Savitha, Shri B"]
[Result "0-1"]
[TimeControl "100+30+30sec/move"]
[WhiteTitle "-"]
[BlackTitle "-"]
[WhiteFideId "26320304"]
[BlackFideId "35061887"]
[WhiteElo "1986"]
[BlackElo "2368"]

1. e4 {[%clk 01:40:45]} {[%emt 00:00:14]} e5 {[%clk 01:39:04]} {[%emt
00:01:55]} 2. Nf3 {[%clk 01:40:35]} {[%emt 00:00:39]} Nc6 {[%clk 01:39:28]}
{[%emt 00:00:06]} 3. Bb5 {[%clk 01:40:37]} {[%emt 00:00:28]} a6 {[%clk
01:39:51]} {[%emt 00:00:08]} 4. Ba4 {[%clk 01:41:04]} {[%emt 00:00:03]} f5
{[%clk 01:40:14]} {[%emt 00:00:07]} 5. d3 {[%clk 01:35:33]} {[%emt 00:06:02]}
fxe4 {[%clk 01:40:38]} {[%emt 00:00:06]} 6. dxe4 {[%clk 01:35:59]} {[%emt
00:00:04]} Nf6 {[%clk 01:40:48]} {[%emt 00:00:19]} 7. Nc3 {[%clk 01:34:35]}
{[%emt 00:01:55]} Bb4 {[%clk 01:41:11]} {[%emt 00:00:06]} 8. Bb3 {[%clk
01:32:38]} {[%emt 00:02:27]} Na5 {[%clk 01:35:27]} {[%emt 00:06:14]} 9. Nxe5
{[%clk 01:12:30]} {[%emt 00:20:39]} Nxb3 {[%clk 01:28:13]} {[%emt 00:07:43]} 10.
axb3 {[%clk 01:08:25]} {[%emt 00:04:35]} Qe7 {[%clk 01:28:22]} {[%emt
00:00:20]} 11. Nf3 {[%clk 01:06:48]} {[%emt 00:02:06]} Qxe4+ {[%clk 01:21:31]}
{[%emt 00:07:23]} 12. Be3 {[%clk 01:06:52]} {[%emt 00:00:26]} O-O {[%clk
01:13:59]} {[%emt 00:08:03]} 13. Qd4 {[%clk 01:01:23]} {[%emt 00:05:59]} Qxd4
{[%clk 01:01:13]} {[%emt 00:13:15]} 14. Bxd4 {[%clk 00:57:20]} {[%emt
00:04:32]} Re8+ {[%clk 01:00:36]} {[%emt 00:01:08]} 15. Kd1 {[%clk 00:56:24]}
{[%emt 00:01:27]} d5 {[%clk 00:50:41]} {[%emt 00:10:24]} 16. Kc1 {[%clk
00:41:52]} {[%emt 00:15:02]} c6 {[%clk 00:47:41]} {[%emt 00:03:30]} 17. Kb1
{[%clk 00:39:21]} {[%emt 00:03:01]} Bg4 {[%clk 00:39:26]} {[%emt 00:08:45]} 18.
Ka2 {[%clk 00:35:51]} {[%emt 00:04:01]} Nd7 {[%clk 00:34:38]} {[%emt 00:05:17]}
19. Rae1 {[%clk 00:32:52]} {[%emt 00:03:29]} Rxe1 {[%clk 00:29:51]} {[%emt
00:05:17]} 20. Rxe1 {[%clk 00:24:29]} {[%emt 00:08:54]} Bxf3 {[%clk 00:23:40]}
{[%emt 00:06:40]} 21. gxf3 {[%clk 00:24:49]} {[%emt 00:00:10]} Rf8 {[%clk
00:23:55]} {[%emt 00:00:15]} 22. Rg1 {[%clk 00:18:06]} {[%emt 00:07:13]} g6
{[%clk 00:24:15]} {[%emt 00:00:10]} 23. h4 {[%clk 00:18:13]} {[%emt 00:00:23]}
Rf4 {[%clk 00:23:42]} {[%emt 00:01:03]} 24. Rg4 {[%clk 00:18:20]} {[%emt
00:00:23]} Rxf3 {[%clk 00:21:18]} {[%emt 00:02:55]} 25. h5 {[%clk 00:18:34]}
{[%emt 00:00:16]} Nf8 {[%clk 00:20:41]} {[%emt 00:01:06]} 26. Na4 {[%clk
00:17:26]} {[%emt 00:01:38]} Bd6 {[%clk 00:15:21]} {[%emt 00:05:50]} 27. Be3
{[%clk 00:13:18]} {[%emt 00:04:39]} Kf7 {[%clk 00:13:10]} {[%emt 00:02:41]} 28.
hxg6+ {[%clk 00:11:32]} {[%emt 00:02:16]} Nxg6 {[%clk 00:13:25]} {[%emt
00:00:14]} 29. Rg5 {[%clk 00:10:50]} {[%emt 00:01:13]} Rh3 {[%clk 00:11:19]}
{[%emt 00:02:35]} 30. c4 {[%clk 00:09:46]} {[%emt 00:01:35]} Be5 {[%clk
00:08:40]} {[%emt 00:03:09]} 31. Nc5 {[%clk 00:09:21]} {[%emt 00:00:54]} Rf3
{[%clk 00:04:36]} {[%emt 00:04:34]} 32. Rh5 {[%clk 00:08:48]} {[%emt 00:01:04]}
Kg8 {[%clk 00:03:32]} {[%emt 00:01:34]} 33. Ne6 {[%clk 00:08:33]} {[%emt
00:00:45]} dxc4 {[%clk 00:02:49]} {[%emt 00:01:13]} 34. bxc4 {[%clk 00:08:54]}
{[%emt 00:00:08]} Rf7 {[%clk 00:02:38]} {[%emt 00:00:40]} 35. b4 {[%clk
00:08:00]} {[%emt 00:01:24]} Re7 {[%clk 00:02:48]} {[%emt 00:00:22]} 36. Nc5
{[%clk 00:07:54]} {[%emt 00:00:35]} Bd6 {[%clk 00:02:24]} {[%emt 00:00:53]} 37.
Nd3 {[%clk 00:07:14]} {[%emt 00:01:10]} Re4 {[%clk 00:02:07]} {[%emt 00:00:48]}
38. Kb3 {[%clk 00:07:20]} {[%emt 00:00:25]} Be7 {[%clk 00:01:05]} {[%emt
00:01:32]} 39. b5 {[%clk 00:06:30]} {[%emt 00:01:19]} cxb5 {[%clk 00:01:06]}
{[%emt 00:00:30]} 40. cxb5 {[%clk 00:06:58]} {[%emt 00:00:01]} a5 {[%clk
00:01:28]} {[%emt 00:00:07]} 41. Bc5 {[%clk 00:03:42]} {[%emt 00:03:47]} Bf6
{[%clk 00:23:02]} {[%emt 00:08:56]} 42. Rd5 {[%clk 00:31:06]} {[%emt 00:03:06]}
Ne5 {[%clk 00:17:25]} {[%emt 00:06:07]} 43. f3 {[%clk 00:28:45]} {[%emt
00:02:51]} a4+ {[%clk 00:16:18]} {[%emt 00:01:38]} 44. Ka3 {[%clk 00:28:43]}
{[%emt 00:00:31]} Nxd3 {[%clk 00:14:54]} {[%emt 00:01:55]} 45. Rxd3 {[%clk
00:29:06]} {[%emt 00:00:07]} Rc4 {[%clk 00:14:22]} {[%emt 00:01:01]} 46. Bb4
{[%clk 00:28:32]} {[%emt 00:01:05]} h5 {[%clk 00:13:37]} {[%emt 00:01:14]} 47.
Rd7 {[%clk 00:27:38]} {[%emt 00:01:24]} h4 {[%clk 00:11:08]} {[%emt 00:02:59]}
48. Rxb7 {[%clk 00:26:31]} {[%emt 00:01:37]} h3 {[%clk 00:11:35]} {[%emt
00:00:03]} 49. Bd6 {[%clk 00:26:57]} {[%emt 00:00:06]} Rd4 {[%clk 00:11:45]}
{[%emt 00:00:17]} 50. Bg3 {[%clk 00:26:31]} {[%emt 00:00:56]} Bh4 {[%clk
00:10:55]} {[%emt 00:01:20]} 51. Rb8+ {[%clk 00:26:21]} {[%emt 00:00:39]} Kf7
{[%clk 00:10:43]} {[%emt 00:00:42]} 52. Be5 {[%clk 00:24:41]} {[%emt 00:02:10]}
Be7+ {[%clk 00:11:01]} {[%emt 00:00:13]} 53. Kb2 {[%clk 00:24:17]} {[%emt
00:00:54]} Rd5 {[%clk 00:10:25]} {[%emt 00:01:06]} 54. Bc7 {[%clk 00:22:15]}
{[%emt 00:02:32]} a3+ {[%clk 00:10:42]} {[%emt 00:00:14]} 55. Ka2 {[%clk
00:21:02]} {[%emt 00:01:42]} Rd2+ {[%clk 00:10:59]} {[%emt 00:00:13]} 56. Kb3
{[%clk 00:21:26]} {[%emt 00:00:07]} Rb2+ {[%clk 00:09:52]} {[%emt 00:01:35]} 57.
Kc3 {[%clk 00:21:07]} {[%emt 00:00:50]} Bf6+ {[%clk 00:10:08]} {[%emt
00:00:14]} 58. Kd3 {[%clk 00:21:18]} {[%emt 00:00:18]} Rb3+ {[%clk 00:10:12]}
{[%emt 00:00:26]} 59. Kd2 {[%clk 00:20:46]} {[%emt 00:01:03]} a2 {[%clk
00:10:29]} {[%emt 00:00:13]} 60. Rb7 {[%clk 00:21:12]} {[%emt 00:00:04]} Kg6
{[%clk 00:10:29]} {[%emt 00:00:29]} 0-1

[Event "Masters Tournament (MTO)"]
[Site "Biel, Switzerland"]
[Date "2026.07.22"]
[Round "9.12"]
[White "Cherniaev, Alexander"]
[Black "Yasaswi, Krishna Bommi"]
[Result "1/2-1/2"]
[TimeControl "100+30+30sec/move"]
[WhiteTitle "-"]
[BlackTitle "-"]
[WhiteFideId "4117301"]
[BlackFideId "33368783"]
[WhiteElo "2275"]
[BlackElo "2085"]

1. e4 {[%clk 01:40:57]} {[%emt 00:00:03]} c5 {[%clk 01:40:53]} {[%emt
00:00:08]} 2. Nf3 {[%clk 01:40:00]} {[%emt 00:01:26]} e6 {[%clk 01:41:17]}
{[%emt 00:00:07]} 3. c3 {[%clk 01:40:25]} {[%emt 00:00:05]} Nf6 {[%clk
01:41:42]} {[%emt 00:00:05]} 4. e5 {[%clk 01:39:58]} {[%emt 00:00:58]} Nd5
{[%clk 01:42:07]} {[%emt 00:00:04]} 5. Bc4 {[%clk 01:40:14]} {[%emt 00:00:14]}
d6 {[%clk 01:40:49]} {[%emt 00:01:48]} 6. d4 {[%clk 01:39:54]} {[%emt
00:00:50]} cxd4 {[%clk 01:41:12]} {[%emt 00:00:07]} 7. cxd4 {[%clk 01:40:16]}
{[%emt 00:00:08]} Be7 {[%clk 01:41:34]} {[%emt 00:00:07]} 8. O-O {[%clk
01:40:14]} {[%emt 00:00:31]} O-O {[%clk 01:41:58]} {[%emt 00:00:07]} 9. Re1
{[%clk 01:36:48]} {[%emt 00:03:56]} b6 {[%clk 01:28:01]} {[%emt 00:14:28]} 10.
Bxd5 {[%clk 01:33:14]} {[%emt 00:04:04]} exd5 {[%clk 01:28:23]} {[%emt
00:00:08]} 11. Nc3 {[%clk 01:33:37]} {[%emt 00:00:07]} Be6 {[%clk 01:25:49]}
{[%emt 00:03:04]} 12. b3 {[%clk 01:30:37]} {[%emt 00:03:30]} Nc6 {[%clk
01:21:33]} {[%emt 00:04:45]} 13. Ba3 {[%clk 01:29:59]} {[%emt 00:01:09]} dxe5
{[%clk 01:16:47]} {[%emt 00:05:16]} 14. Bxe7 {[%clk 01:30:19]} {[%emt
00:00:09]} Qxe7 {[%clk 01:14:56]} {[%emt 00:02:22]} 15. dxe5 {[%clk 01:17:44]}
{[%emt 00:13:05]} Rfd8 {[%clk 01:09:43]} {[%emt 00:05:42]} 16. Nd4 {[%clk
01:17:23]} {[%emt 00:00:52]} Nxd4 {[%clk 00:55:43]} {[%emt 00:14:31]} 17. Qxd4
{[%clk 01:17:20]} {[%emt 00:00:32]} Rac8 {[%clk 00:52:42]} {[%emt 00:03:30]} 18.
Rad1 {[%clk 01:15:37]} {[%emt 00:02:13]} h6 {[%clk 00:45:25]} {[%emt 00:07:48]}
19. Rd2 {[%clk 01:10:40]} {[%emt 00:05:27]} Rc6 {[%clk 00:39:56]} {[%emt
00:05:59]} 20. h3 {[%clk 01:06:53]} {[%emt 00:04:17]} a6 {[%clk 00:34:13]}
{[%emt 00:06:13]} 21. Re3 {[%clk 01:06:51]} {[%emt 00:00:31]} Qc5 {[%clk
00:27:39]} {[%emt 00:07:05]} 22. Qh4 {[%clk 00:53:39]} {[%emt 00:13:41]} Rdc8
{[%clk 00:21:31]} {[%emt 00:06:39]} 23. Ne2 {[%clk 00:46:02]} {[%emt 00:08:06]}
Kf8 {[%clk 00:18:14]} {[%emt 00:03:48]} 24. Qf4 {[%clk 00:42:42]} {[%emt
00:03:50]} Qe7 {[%clk 00:14:20]} {[%emt 00:04:24]} 25. Rg3 {[%clk 00:38:16]}
{[%emt 00:04:56]} Rc2 {[%clk 00:10:46]} {[%emt 00:04:04]} 26. Nd4 {[%clk
00:38:18]} {[%emt 00:00:27]} Rxd2 {[%clk 00:09:05]} {[%emt 00:02:11]} 27. Qxd2
{[%clk 00:38:30]} {[%emt 00:00:18]} Qc7 {[%clk 00:07:17]} {[%emt 00:02:18]} 28.
Qb4+ {[%clk 00:31:34]} {[%emt 00:07:27]} Kg8 {[%clk 00:04:38]} {[%emt
00:03:09]} 29. Re3 {[%clk 00:16:32]} {[%emt 00:15:31]} Qc5 {[%clk 00:03:20]}
{[%emt 00:01:48]} 30. Qd2 {[%clk 00:16:36]} {[%emt 00:00:26]} Qc1+ {[%clk
00:03:06]} {[%emt 00:00:44]} 31. Qxc1 {[%clk 00:17:02]} {[%emt 00:00:05]} Rxc1+
{[%clk 00:03:31]} {[%emt 00:00:04]} 32. Kh2 {[%clk 00:17:26]} {[%emt 00:00:06]}
Kf8 {[%clk 00:02:01]} {[%emt 00:02:00]} 33. f4 {[%clk 00:15:58]} {[%emt
00:01:59]} g6 {[%clk 00:01:33]} {[%emt 00:00:58]} 34. Rd3 {[%clk 00:13:12]}
{[%emt 00:03:15]} h5 {[%clk 00:01:19]} {[%emt 00:00:45]} 35. Kg3 {[%clk
00:13:30]} {[%emt 00:00:11]} Ke7 {[%clk 00:01:12]} {[%emt 00:00:38]} 36. Rd2
{[%clk 00:12:24]} {[%emt 00:01:36]} Kd7 {[%clk 00:00:43]} {[%emt 00:01:00]} 37.
Kh4 {[%clk 00:12:04]} {[%emt 00:00:49]} Rf1 {[%clk 00:00:46]} {[%emt 00:00:27]}
38. Kg5 {[%clk 00:12:11]} {[%emt 00:00:23]} Rg1 {[%clk 00:00:38]} {[%emt
00:00:39]} 39. Kf6 {[%clk 00:11:46]} {[%emt 00:00:54]} Rf1 {[%clk 00:00:51]}
{[%emt 00:00:17]} 40. Nxe6 {[%clk 00:06:05]} {[%emt 00:06:11]} fxe6 {[%clk
00:01:16]} {[%emt 00:00:05]} 41. Kxg6 {[%clk 00:00:38]} {[%emt 00:05:57]} Rxf4
{[%clk 00:00:57]} {[%emt 00:00:49]} 42. Kxh5 {[%clk 00:00:31]} {[%emt
00:00:37]} Rf5+ {[%clk 00:29:03]} {[%emt 00:02:24]} 43. Kg6 {[%clk 00:30:15]}
{[%emt 00:00:45]} Rxe5 {[%clk 00:28:55]} {[%emt 00:00:39]} 44. h4 {[%clk
00:21:05]} {[%emt 00:09:41]} Ke7 {[%clk 00:19:05]} {[%emt 00:10:19]} 45. g4
{[%clk 00:16:45]} {[%emt 00:04:50]} Re4 {[%clk 00:16:21]} {[%emt 00:03:14]} 46.
Kg5 {[%clk 00:16:56]} {[%emt 00:00:18]} Kf7 {[%clk 00:13:38]} {[%emt 00:03:13]}
47. Rc2 {[%clk 00:13:13]} {[%emt 00:04:14]} Re5+ {[%clk 00:11:58]} {[%emt
00:02:10]} 48. Kf4 {[%clk 00:13:24]} {[%emt 00:00:20]} Re4+ {[%clk 00:10:33]}
{[%emt 00:01:55]} 49. Kf3 {[%clk 00:13:53]} {[%emt 00:00:01]} Re1 {[%clk
00:09:20]} {[%emt 00:01:42]} 50. Rc6 {[%clk 00:10:49]} {[%emt 00:03:35]} d4
{[%clk 00:07:16]} {[%emt 00:02:35]} 51. Rc2 {[%clk 00:01:54]} {[%emt 00:09:24]}
1/2-1/2

[Event "Masters Tournament (MTO)"]
[Site "Biel, Switzerland"]
[Date "2026.07.22"]
[Round "9.13"]
[White "Lu, Miaoyi"]
[Black "Stefan, Iulia-Cristiana"]
[Result "1-0"]
[TimeControl "100+30+30sec/move"]
[WhiteTitle "-"]
[BlackTitle "-"]
[WhiteFideId "8618020"]
[BlackFideId "1273876"]
[WhiteElo "2392"]
[BlackElo "2053"]

1. e4 {[%clk 01:40:59]} {[%emt 00:00:01]} e5 {[%clk 01:40:38]} {[%emt
00:00:22]} 2. Nf3 {[%clk 01:41:22]} {[%emt 00:00:06]} Nc6 {[%clk 01:41:06]}
{[%emt 00:00:03]} 3. d4 {[%clk 01:41:48]} {[%emt 00:00:05]} exd4 {[%clk
01:41:32]} {[%emt 00:00:04]} 4. Nxd4 {[%clk 01:42:13]} {[%emt 00:00:04]} Bb4+
{[%clk 01:41:56]} {[%emt 00:00:06]} 5. c3 {[%clk 01:42:24]} {[%emt 00:00:19]}
Bc5 {[%clk 01:42:21]} {[%emt 00:00:05]} 6. Be3 {[%clk 01:42:40]} {[%emt
00:00:13]} Bb6 {[%clk 01:42:24]} {[%emt 00:00:27]} 7. Nf5 {[%clk 01:41:42]}
{[%emt 00:01:28]} d6 {[%clk 01:42:45]} {[%emt 00:00:09]} 8. Nxg7+ {[%clk
01:41:43]} {[%emt 00:00:28]} Kf8 {[%clk 01:43:10]} {[%emt 00:00:05]} 9. Bxb6
{[%clk 01:42:01]} {[%emt 00:00:13]} axb6 {[%clk 01:43:37]} {[%emt 00:00:03]} 10.
Nh5 {[%clk 01:42:22]} {[%emt 00:00:09]} Nf6 {[%clk 01:43:56]} {[%emt 00:00:10]}
11. Nxf6 {[%clk 01:41:09]} {[%emt 00:01:44]} Qxf6 {[%clk 01:44:21]} {[%emt
00:00:05]} 12. Nd2 {[%clk 01:41:28]} {[%emt 00:00:11]} Rg8 {[%clk 01:42:19]}
{[%emt 00:02:31]} 13. g3 {[%clk 01:30:26]} {[%emt 00:11:33]} Ne5 {[%clk
01:19:34]} {[%emt 00:23:15]} 14. f4 {[%clk 01:22:39]} {[%emt 00:08:17]} Ng4
{[%clk 01:15:56]} {[%emt 00:04:08]} 15. Qf3 {[%clk 01:20:59]} {[%emt 00:02:09]}
h5 {[%clk 01:11:09]} {[%emt 00:05:17]} 16. h3 {[%clk 01:03:29]} {[%emt
00:18:00]} Nh6 {[%clk 01:09:20]} {[%emt 00:02:20]} 17. Bc4 {[%clk 01:03:54]}
{[%emt 00:00:05]} Be6 {[%clk 00:48:04]} {[%emt 00:21:45]} 18. Bxe6 {[%clk
00:47:00]} {[%emt 00:17:24]} Qxe6 {[%clk 00:48:29]} {[%emt 00:00:06]} 19. Kf2
{[%clk 00:47:20]} {[%emt 00:00:10]} Ra5 {[%clk 00:28:17]} {[%emt 00:20:42]} 20.
Nb3 {[%clk 00:38:59]} {[%emt 00:08:51]} Rb5 {[%clk 00:28:28]} {[%emt 00:00:19]}
21. Qe2 {[%clk 00:37:35]} {[%emt 00:01:54]} Qg6 {[%clk 00:24:42]} {[%emt
00:04:16]} 22. Rhg1 {[%clk 00:29:07]} {[%emt 00:08:58]} c6 {[%clk 00:23:12]}
{[%emt 00:02:00]} 23. Rad1 {[%clk 00:24:08]} {[%emt 00:05:28]} Qf6 {[%clk
00:14:49]} {[%emt 00:08:54]} 24. Qf3 {[%clk 00:20:25]} {[%emt 00:04:13]} Qe6
{[%clk 00:11:27]} {[%emt 00:03:51]} 25. Kg2 {[%clk 00:12:54]} {[%emt 00:08:02]}
f5 {[%clk 00:08:38]} {[%emt 00:03:19]} 26. Rde1 {[%clk 00:10:12]} {[%emt
00:03:11]} h4 {[%clk 00:06:51]} {[%emt 00:02:17]} 27. exf5 {[%clk 00:06:35]}
{[%emt 00:04:07]} Qxf5 {[%clk 00:06:35]} {[%emt 00:00:47]} 28. g4 {[%clk
00:05:55]} {[%emt 00:01:10]} Nxg4 {[%clk 00:03:15]} {[%emt 00:03:49]} 29. hxg4
{[%clk 00:05:45]} {[%emt 00:00:41]} Rxg4+ {[%clk 00:03:40]} {[%emt 00:00:05]}
30. Kh1 {[%clk 00:05:49]} {[%emt 00:00:26]} Rxf4 {[%clk 00:02:21]} {[%emt
00:01:48]} 31. Qg2 {[%clk 00:06:14]} {[%emt 00:00:05]} Qd5 {[%clk 00:01:39]}
{[%emt 00:01:13]} 32. Nd4 {[%clk 00:06:42]} {[%emt 00:00:02]} Rf2 {[%clk
00:00:47]} {[%emt 00:01:22]} 33. Qxd5 {[%clk 00:02:17]} {[%emt 00:04:55]} Rxd5
{[%clk 00:01:16]} {[%emt 00:00:01]} 34. Rgf1 {[%clk 00:02:38]} {[%emt
00:00:08]} Rxf1+ {[%clk 00:00:49]} {[%emt 00:00:57]} 35. Rxf1+ {[%clk
00:03:07]} {[%emt 00:00:02]} Ke7 {[%clk 00:00:36]} {[%emt 00:00:42]} 36. Rf2
{[%clk 00:02:39]} {[%emt 00:00:58]} Re5 {[%clk 00:00:37]} {[%emt 00:00:30]} 37.
Kg2 {[%clk 00:02:18]} {[%emt 00:00:51]} c5 {[%clk 00:00:48]} {[%emt 00:00:19]}
38. Nf5+ {[%clk 00:01:59]} {[%emt 00:00:48]} Kd7 {[%clk 00:01:01]} {[%emt
00:00:17]} 39. Nxh4 {[%clk 00:01:13]} {[%emt 00:01:17]} b5 {[%clk 00:01:12]}
{[%emt 00:00:19]} 40. Kf3 {[%clk 00:01:09]} {[%emt 00:00:33]} Rh5 {[%clk
00:00:35]} {[%emt 00:01:07]} 41. Ng6 {[%clk 00:00:36]} {[%emt 00:01:03]} b4
{[%clk 00:30:03]} {[%emt 00:01:03]} 42. Nf4 {[%clk 00:29:21]} {[%emt 00:01:44]}
Rf5 {[%clk 00:30:09]} {[%emt 00:00:24]} 43. cxb4 {[%clk 00:28:17]} {[%emt
00:01:35]} cxb4 {[%clk 00:30:30]} {[%emt 00:00:09]} 44. Ke4 {[%clk 00:28:33]}
{[%emt 00:00:13]} Ra5 {[%clk 00:30:04]} {[%emt 00:00:57]} 45. b3 {[%clk
00:27:53]} {[%emt 00:01:10]} Re5+ {[%clk 00:29:52]} {[%emt 00:00:42]} 46. Kd4
{[%clk 00:28:17]} {[%emt 00:00:06]} Kc6 {[%clk 00:29:13]} {[%emt 00:01:09]} 47.
Nd3 {[%clk 00:28:26]} {[%emt 00:00:20]} Rd5+ {[%clk 00:29:16]} {[%emt
00:00:27]} 48. Ke4 {[%clk 00:28:51]} {[%emt 00:00:05]} Rb5 {[%clk 00:29:37]}
{[%emt 00:00:09]} 49. Rc2+ {[%clk 00:28:54]} {[%emt 00:00:27]} Kb6 {[%clk
00:28:50]} {[%emt 00:01:17]} 50. Kd4 {[%clk 00:29:10]} {[%emt 00:00:14]} Ka6
{[%clk 00:27:51]} {[%emt 00:01:30]} 51. Rc8 {[%clk 00:28:22]} {[%emt 00:01:18]}
Kb6 {[%clk 00:27:50]} {[%emt 00:00:31]} 52. Kc4 {[%clk 00:26:37]} {[%emt
00:02:14]} Rh5 {[%clk 00:27:12]} {[%emt 00:01:08]} 53. Kxb4 {[%clk 00:26:48]}
{[%emt 00:00:19]} Rh2 {[%clk 00:27:31]} {[%emt 00:00:11]} 54. a4 {[%clk
00:26:57]} {[%emt 00:00:21]} Rh3 {[%clk 00:27:13]} {[%emt 00:00:48]} 55. Nf4
{[%clk 00:26:42]} {[%emt 00:00:45]} Rh4 {[%clk 00:27:20]} {[%emt 00:00:23]} 56.
Rc4 {[%emt 00:00:15]} 1-0

[Event "Masters Tournament (MTO)"]
[Site "Biel, Switzerland"]
[Date "2026.07.22"]
[Round "9.14"]
[White "Haimovich, Tal"]
[Black "Xu, Chang(Cq)"]
[Result "1-0"]
[TimeControl "100+30+30sec/move"]
[WhiteTitle "-"]
[BlackTitle "-"]
[WhiteFideId "2801698"]
[BlackFideId "8641757"]
[WhiteElo "2310"]
[BlackElo "2125"]

1. d4 {[%clk 01:40:58]} {[%emt 05:25:43]} Nf6 {[%clk 01:40:51]} {[%emt
00:00:08]} 2. c4 {[%clk 01:41:24]} {[%emt 00:00:06]} e6 {[%clk 01:41:13]}
{[%emt 00:00:07]} 3. Nc3 {[%clk 01:41:45]} {[%emt 00:00:07]} Bb4 {[%clk
01:41:37]} {[%emt 00:00:08]} 4. Nf3 {[%clk 01:41:56]} {[%emt 00:00:18]} b6
{[%clk 01:41:21]} {[%emt 00:00:46]} 5. g3 {[%clk 01:40:31]} {[%emt 00:01:55]}
Bb7 {[%clk 01:40:33]} {[%emt 00:01:18]} 6. Bg2 {[%clk 01:40:46]} {[%emt
00:00:15]} O-O {[%clk 01:37:54]} {[%emt 00:03:09]} 7. Bd2 {[%clk 01:35:10]}
{[%emt 00:06:07]} c5 {[%clk 01:32:32]} {[%emt 00:05:52]} 8. dxc5 {[%clk
01:17:07]} {[%emt 00:18:32]} Bxc5 {[%clk 01:29:03]} {[%emt 00:03:58]} 9. Bg5
{[%clk 01:16:15]} {[%emt 00:01:23]} h6 {[%clk 01:18:46]} {[%emt 00:10:47]} 10.
Bxf6 {[%clk 01:15:59]} {[%emt 00:00:46]} Qxf6 {[%clk 01:18:59]} {[%emt
00:00:16]} 11. O-O {[%clk 01:16:23]} {[%emt 00:00:06]} d6 {[%clk 01:11:10]}
{[%emt 00:08:20]} 12. Qa4 {[%clk 01:00:26]} {[%emt 00:16:27]} a5 {[%clk
01:06:31]} {[%emt 00:05:09]} 13. Rad1 {[%clk 00:56:11]} {[%emt 00:04:45]} Rd8
{[%clk 01:00:17]} {[%emt 00:06:43]} 14. Qc2 {[%clk 00:51:09]} {[%emt 00:05:33]}
Nd7 {[%clk 00:57:58]} {[%emt 00:02:49]} 15. Nb5 {[%clk 00:44:43]} {[%emt
00:06:56]} Qe7 {[%clk 00:57:26]} {[%emt 00:01:02]} 16. e4 {[%clk 00:37:53]}
{[%emt 00:07:20]} Rac8 {[%clk 00:51:16]} {[%emt 00:06:39]} 17. Qe2 {[%clk
00:33:26]} {[%emt 00:04:57]} Ne5 {[%clk 00:48:01]} {[%emt 00:03:45]} 18. b3
{[%clk 00:33:14]} {[%emt 00:00:44]} Bc6 {[%clk 00:42:30]} {[%emt 00:06:00]} 19.
Nfd4 {[%clk 00:31:43]} {[%emt 00:02:01]} Ba8 {[%clk 00:41:11]} {[%emt
00:01:49]} 20. Kh1 {[%clk 00:30:41]} {[%emt 00:01:32]} Nc6 {[%clk 00:39:48]}
{[%emt 00:01:54]} 21. Nxc6 {[%clk 00:23:45]} {[%emt 00:07:25]} Bxc6 {[%clk
00:40:02]} {[%emt 00:00:16]} 22. Nd4 {[%clk 00:23:55]} {[%emt 00:00:20]} Be8
{[%clk 00:36:31]} {[%emt 00:04:01]} 23. Nc2 {[%clk 00:23:24]} {[%emt 00:01:01]}
Qf6 {[%clk 00:36:24]} {[%emt 00:00:36]} 24. Ne1 {[%clk 00:18:10]} {[%emt
00:05:45]} a4 {[%clk 00:33:41]} {[%emt 00:03:12]} 25. f4 {[%clk 00:16:37]}
{[%emt 00:02:03]} axb3 {[%clk 00:33:08]} {[%emt 00:01:03]} 26. axb3 {[%clk
00:17:05]} {[%emt 00:00:02]} Qc3 {[%clk 00:32:28]} {[%emt 00:01:10]} 27. Rf3
{[%clk 00:16:02]} {[%emt 00:01:33]} Qa5 {[%clk 00:32:09]} {[%emt 00:00:49]} 28.
f5 {[%clk 00:11:18]} {[%emt 00:05:14]} e5 {[%clk 00:29:59]} {[%emt 00:02:40]}
29. f6 {[%clk 00:08:27]} {[%emt 00:03:22]} g6 {[%clk 00:29:40]} {[%emt
00:00:49]} 30. g4 {[%clk 00:08:36]} {[%emt 00:00:21]} Ra8 {[%clk 00:24:52]}
{[%emt 00:05:18]} 31. Rh3 {[%clk 00:08:32]} {[%emt 00:00:34]} Qa2 {[%clk
00:21:42]} {[%emt 00:03:39]} 32. Nc2 {[%clk 00:08:34]} {[%emt 00:00:28]} d5
{[%clk 00:16:46]} {[%emt 00:05:27]} 33. exd5 {[%clk 00:08:58]} {[%emt
00:00:06]} Bf8 {[%clk 00:16:56]} {[%emt 00:00:20]} 34. Be4 {[%clk 00:08:45]}
{[%emt 00:00:43]} Rd6 {[%clk 00:14:38]} {[%emt 00:02:48]} 35. Rf1 {[%clk
00:08:54]} {[%emt 00:00:21]} Bd7 {[%clk 00:12:35]} {[%emt 00:02:33]} 36. Rg3
{[%clk 00:06:10]} {[%emt 00:03:14]} Qa5 {[%clk 00:06:57]} {[%emt 00:06:08]} 37.
Qd3 {[%clk 00:05:21]} {[%emt 00:01:19]} Be8 {[%clk 00:07:05]} {[%emt 00:00:22]}
38. h4 {[%clk 00:05:22]} {[%emt 00:00:29]} Qc5 {[%clk 00:06:27]} {[%emt
00:01:08]} 39. h5 {[%clk 00:05:32]} {[%emt 00:00:20]} g5 {[%clk 00:06:48]}
{[%emt 00:00:09]} 40. Qf3 {[%clk 00:05:39]} {[%emt 00:00:22]} Bd7 {[%clk
00:06:56]} {[%emt 00:00:23]} 41. Bd3 {[%clk 00:05:36]} {[%emt 00:00:33]} b5
{[%clk 00:04:15]} {[%emt 00:03:11]} 42. Qe4 {[%clk 00:05:48]} {[%emt 00:00:18]}
bxc4 {[%clk 00:04:38]} {[%emt 00:00:07]} 43. Qh7# {[%clk 00:06:12]} {[%emt
00:00:05]} 1-0